Cogmind - Beta 16 @@@ ROGUE MODE // 2026.01.28 @ 15:31:57 Player: Carter Result: Destroyed by G-34 Mercenary with Small Laser Performance ------------- Evolutions (1) 500 Regions Visited (2) 400 Robots Destroyed (28) 140 Value Destroyed (955) 955 Prototype IDs (0) 0 Alien Tech Used (0) 0 Bonus (0) 0 TOTAL SCORE: 1995 Bonus ------- None Cogmind --------- Core Integrity 0/400 Matter 300/300 Energy 98/100 System Corruption 0% Temperature Cool (7) Movement Treading (240) Ox1 Location -9/Materials Parts ------- > --- POWER (2) -------- (None) > --- PROPULSION (2) --- Light Treads > --- UTILITY (2) ------ Hardlight Generator Hardlight Generator > --- WEAPON (3) ------- EM Pulse Cannon EM Pulse Cannon EM Pulse Cannon > --- INVENTORY (5) ---- Improved Targeting Computer Power Shielding Shock Rifle Improved Datajack Improved Datajack Peak State ------------ > --- POWER ------------ Ion Engine > --- PROPULSION ------- Improved Treads Improved Treads > --- UTILITY ---------- Hardlight Generator Hardlight Generator > --- WEAPON ----------- EM Shotgun Shock Rifle Improved Datajack > --- INVENTORY -------- Improved Targeting Computer Power Shielding Shock Rifle Improved Datajack Improved Datajack [Rating: 20] Favorites ----------- Power Ion Engine Engine Ion Engine Power Core Light Nuclear Core Propulsion Light Treads Treads Light Treads Leg Aluminum Leg Wheel Wheel Utility Small Storage Unit Device Hardlight Generator Storage Small Storage Unit Processor Improved Targeting Computer Protection Medium Armor Plating Weapon Shotgun Energy Gun EM Pulse Gun Energy Cannon EM Pulse Cannon Ballistic Gun Shotgun Special Weapon Mining Laser Impact Weapon Flail Special Melee Weapon Improved Datajack Build | -11 -10 -9 ------- Run | Yrd Mat Mat Slots Evolved 2 | . . 2 Power 1 | . . 1 Propulsion . | . . . Utility . | . . . Weapon 1 | . . 1 Parts Attached 43 | 8 6 29 Power 5 | 1 2 2 Engine 4 | 1 1 2 Core 1 | . 1 . Reactor . | . . . Propulsion 10 | 4 1 5 Treads 6 | 2 . 4 Leg 3 | 1 1 1 Wheel 1 | 1 . . Hover . | . . . Flight . | . . . Utility 8 | 1 1 6 Device 4 | . . 4 Storage 2 | 1 1 . Processor 1 | . . 1 Hackware . | . . . Protection 1 | . . 1 Artifact . | . . . Weapon 20 | 2 2 16 Energy Gun 8 | . 2 6 Energy Cannon 3 | . . 3 Ballistic Gun 5 | 2 . 3 Ballistic Cannon . | . . . Launcher . | . . . Special Weapon 1 | . . 1 Impact Weapon 2 | . . 2 Slashing Weapon . | . . . Piercing Weapon . | . . . Special Melee Weapon 1 | . . 1 Unidentified Prototypes . | . . . Parts Lost 19 | . 5 14 Power 5 | . 2 3 Propulsion 6 | . 2 4 Utility 1 | . . 1 Weapon 7 | . 1 6 Highest Loss Streak 4 | . 4 4 To Critical Strikes . | . . . Average Backups 3 | 1 2 4 Power . | . 1 . Propulsion . | . . . Utility 1 | . . 2 Weapon . | . 1 . Tool/Special . | . . . Unused Backups 5 | . . 5 Power . | . . . Propulsion . | . . . Utility 3 | . . 3 Weapon . | . . . Tool/Special 2 | . . 2 Average Slot Usage (%) 75 | . 85 70 Engine 6 | . 6 6 Core 2 | . 6 . Treads 9 | . 9 9 Leg 5 | . 8 3 Device 7 | . . 11 Storage 10 | . 26 3 Processor 2 | . . 3 Protection 1 | . . 2 Energy Gun 9 | . 10 9 Energy Cannon 3 | . . 5 Ballistic Gun 11 | . 16 9 Impact Weapon 1 | . . 2 Peak Build Rating 20 | 6 9 20 Average Rating 10 | 4 7 12 On Entrance 4 | . 6 7 Avg Prop Armor Cover (%) . | . . . Naked Turns . | . . . Heaviest Build 28 | 10 20 28 Greatest Support 46 | 40 40 46 Greatest Overweight (x) 5 | 2 4 5 Average Overweight (x) . | . . . Largest Inventory Capacity 8 | 8 8 8 Average Capacity 6 | 7 8 5 Most Carried 7 | 2 5 7 Average Carried 3 | 1 2 4 Final Capacity 8 | 8 8 5 Final Carried 5 | 2 5 5 Class Distribution -------------------- 64% | Mutant 18% | Tank 17% | Gunner Dominant Class ---------------- Mutant | -10/Materials Mutant | -9/Materials Resources | -11 -10 -9 ----------- Run | Yrd Mat Mat Matter Collected 788 | 176 234 378 Remotely . | . . . Salvage Created 1089 | . 280 809 Parts 43 | . 11 32 Haulers Intercepted . | . . . Recyclers Shooed 3 | . . 3 Parts Field Recycled . | . . . Retrieved Matter . | . . . Parts Self-Destructed . | . . . Prevented . | . . . Parts Restored . | . . . Kills | -11 -10 -9 ------- Run | Yrd Mat Mat Combat Hostiles Destroyed 26 | . 9 17 Melee 1 | . 1 . Guns 18 | . 6 12 Cannons 1 | . . 1 AOE 2 | . 2 . Classes Destroyed 6 | . 2 4 Recycler 1 | . . 1 Watcher 1 | . . 1 Swarmer 3 | . 3 . Grunt 18 | . 6 12 Brawler 1 | . . 1 Sentry 4 | . . 4 Best Kill Streak 3 | . 3 3 Combat Bots Only 3 | . 3 3 Max Kills in Single Turn 2 | . 2 1 Gunslinging . | . . . Exploded 2 | . 2 . Melee 1 | . 1 . Uniques/NPCs Destroyed . | . . . Combat | -11 -10 -9 -------- Run | Yrd Mat Mat Hostile Shots Fired 304 | . 72 232 Missed 76 | . 15 61 Hits 228 | . 57 171 Melee 1 | . . 1 Projectile 227 | . 57 170 Critical Strikes 6 | . 1 5 Damage Taken 2884 | . 693 2191 Core 560 | . 156 404 Absorbed by Shields 44 | . . 44 Core Remaining (%) 68 | 100 37 . Volleys Fired 84 | . 35 49 Largest 3 | . 2 3 Hottest 205 | . 105 205 Shots Fired 160 | . 60 100 Gun 156 | . 60 96 Cannon 1 | . . 1 Launcher . | . . . Special 3 | . . 3 Kinetic 90 | . 52 38 Thermal 37 | . 2 35 Explosive . | . . . Electromagnetic 33 | . 6 27 Robot Hit Streak 11 | . 11 10 Robot Miss Streak 7 | . 6 7 Penetration Max . | . . . Secondary Targets 7 | . 3 4 Max Gunslinging Chain 1 | . 1 1 Shots Hit Robots 118 | . 36 82 Core Hits 52 | 1 12 39 Critical Kills . | . . . Critical Parts Destroyed 4 | . 1 3 Critical Strikes 5 | . 1 4 Burn 1 | . . 1 Destroy 2 | . 1 1 Smash 2 | . . 2 Melee Attacks 17 | . . 17 Impact 13 | . . 13 Slashing . | . . . Piercing . | . . . Sneak Attacks 1 | . . 1 Combat Hostiles . | . . . Follow-up Attacks . | . . . Damage Inflicted 1905 | 6 433 1466 Guns 1372 | . 324 1048 Cannons 26 | . . 26 Explosions 173 | . 108 65 Melee 268 | . . 268 Ramming 42 | 6 1 35 Kinetic 670 | . 248 422 Thermal 522 | . 139 383 Explosive . | . . . Electromagnetic 403 | . 45 358 Impact 268 | . . 268 Slashing . | . . . Piercing . | . . . Highest Corruption . | . . . Average Corruption . | . . . Corruption Purged . | . . . Corruption Blocked . | . . . Overload Shots . | . . . Overflow Damage 96 | . 1 95 Projectiles . | . . . Explosions 16 | . 1 15 Melee 80 | . . 80 Knockbacks 1 | . . 1 Impact 1 | . . 1 Kinetic . | . . . Secondary . | . . . Self-Inflicted Damage 68 | . 28 40 Shots 2 | . 1 1 Rammed 10 | 2 . 8 Targets Rammed 15 | 2 1 12 Kicked 4 | . . 4 Crushed 1 | . 1 . Highest Temperature 120 | . 114 120 Average Temperature 23 | . 24 23 Received Heat Transfer 1358 | . 297 1061 Siege Activations . | . . . Martial Activations . | . . . Shielding Activations . | . . . Robots Disrupted . | . . . Combat Hostiles . | . . . Robots Corrupted 4 | . . 4 Combat Hostiles 4 | . . 4 Parts Fried 7 | . . 7 Impact Corruptions 4 | . . 4 Robots Melted . | . . . Combat Hostiles . | . . . Parts Melted 1 | . . 1 Heat Transferred 1103 | . 174 929 Parts Sabotaged . | . . . Parts Stolen . | . . . Parts Stripped . | . . . Power Chain Reactions 2 | . 1 1 Alert | -11 -10 -9 ------- Run | Yrd Mat Mat Maximum Alert Level . | . . . Low Security (%) 100 | 100 100 100 Level 1 . | . . . Level 2 . | . . . Level 3 . | . . . Level 4 . | . . . Level 5 . | . . . High Security . | . . . Max Security . | . . . Peak Influence 82 | . 60 82 Initial 5 | . . 5 Average 24 | . 12 33 Influence Increases 777 | . 225 552 Destroy 0b10 Robot/C 520 | . 180 340 Destroy 0b10 Robot/NC 10 | . . 10 Destroy Leader 132 | . 40 92 Disable Machine 15 | . . 15 Destroy Structure 10 | . 5 5 Lose Combat Pursuer 90 | . . 90 Influence Decreases 739 | . 212 527 Entered New Map 8 | . . 8 Time Decay 581 | . 162 419 Lost Part 150 | . 50 100 Squads Dispatched 3 | . 1 2 Investigation 1 | . . 1 Extermination . | . . . Reinforcement 2 | . 1 1 Assault . | . . . Garrison . | . . . Intercept . | . . . Searches Triggered . | . . . Construction Impeded . | . . . Haulers Reinforced . | . . . Active Scanning Responses . | . . . Cargo Convoy Interrupts . | . . . Stealth | -11 -10 -9 --------- Run | Yrd Mat Mat Distress Signals 4 | . 1 3 Communications Jammed . | . . . Distress Signals . | . . . Times Spotted 48 | . 11 37 Peak Tracking Total 5 | . 4 5 Tactical Retreats 6 | . . 6 Traps | -11 -10 -9 ------- Run | Yrd Mat Mat Traps Triggered 4 | . 3 1 Indirectly . | . . . Trap Hack Attempts . | . . . Triggered . | . . . Disarmed . | . . . Reprogrammed . | . . . Reused . | . . . Traps Extracted . | . . . Installed . | . . . Triggered . | . . . Machines | -11 -10 -9 ---------- Run | Yrd Mat Mat Machines Disabled 1 | . . 1 Max in Single Turn 1 | . . 1 Machines Repaired . | . . . Machines Dismantled . | . . . Machines Sabotaged . | . . . Overloaded Fab Kills . | . . . Hacking | -11 -10 -9 --------- Run | Yrd Mat Mat Machines Accessed 3 | . 1 2 Terminals 2 | . 1 1 Fabricators . | . . . Repair Stations 1 | . . 1 Recycling Units . | . . . Scanalyzers . | . . . Garrison Access . | . . . Total Hacks 3 | . 1 2 Successful 3 | . 1 2 Failed . | . . . Catastrophic . | . . . Database Lockouts . | . . . Manual . | . . . Terminals 2 | . 1 1 Fabricators . | . . . Repair Stations 1 | . . 1 Recycling Units . | . . . Scanalyzers . | . . . Garrison Access . | . . . Terminal Hacks 2 | . 1 1 Alert Level 1 | . . 1 Investigation Status 1 | . 1 . Fabricator Hacks . | . . . Repair Station Hacks 1 | . . 1 Scan Component 1 | . . 1 Recycling Unit Hacks . | . . . Scanalyzer . | . . . Garrison Access Hacks . | . . . Unauthorized Hacks . | . . . Terminals . | . . . Fabricators . | . . . Repair Stations . | . . . Recycling Units . | . . . Scanalyzers . | . . . Garrison Access . | . . . Data Cores Recovered . | . . . Used . | . . . Hacking Detections 1 | . 1 . Full Trace Events . | . . . Feedback Events . | . . . Feedback Blocked . | . . . Robot Schematics Acquired . | . . . Robots Built . | . . . Authchips . | . . . Time . | . . . Total Robot Build Rating . | . . . Part Schematics Acquired . | . . . Parts Built . | . . . Authchips . | . . . Time . | . . . Total Part Build Rating . | . . . Part Studies Acquired . | . . . Parts Repaired . | . . . Time . | . . . Parts Recycled . | . . . Recycled Matter . | . . . Retrieved Matter . | . . . Retrieved Components . | . . . Parts Scanalyzed . | . . . Part Schematics Acquired . | . . . Parts Damaged . | . . . Bothacking | -11 -10 -9 ------------ Run | Yrd Mat Mat Used RIF Installer . | . . . Robots Hacked 1 | . . 1 Non-combat . | . . . Combat 1 | . . 1 Robot Hacks Applied 1 | . . 1 parse_system 1 | . . 1 Relay Couplers Released . | . . . Fabnet Peak Effective % . | . . . Robots Rewired . | . . . Allies Hacked . | . . . Hacks Repelled . | . . . Allies | -11 -10 -9 -------- Run | Yrd Mat Mat Total Allies . | . . . Largest Group . | . . . Highest-Rated Group . | . . . Highest-Rated Ally . | . . . Total Orders . | . . . Ally Attacks . | . . . Total Damage . | . . . Kills . | . . . Allies Corrupted . | . . . Allies Melted . | . . . Intel | -11 -10 -9 ------- Run | Yrd Mat Mat Active Infowar (turns) . | . . . Robot Analysis Total . | . . . Derelict Logs Recovered . | . . . Drone Launches . | . . . Drone Recoveries . | . . . Exploration | -11 -10 -9 ------------- Run | Yrd Mat Mat Turns Passed 2362 | 177 708 1477 Spaces Moved 1026 | 89 329 608 Core 24 | 10 8 6 Treads 583 | 73 108 402 Legs 414 | 1 213 200 Wheels 5 | 5 . . Hover . | . . . Flight . | . . . Fastest Speed 50 | 50 100 160 Average Speed 184 | 146 180 191 Slowest Speed 300 | 160 250 300 Overloaded Moves . | . . . Propulsion Burnouts . | . . . Robots Hopped . | . . . Potential Cave-ins . | . . . Cave-ins Triggered . | . . . Exploration Rate (%) 30 | 6 43 41 Regions Visited 2 Branch Regions . Pre-discovered Areas . | . . . Known Exits Taken . | . . . Unknown Exits Taken 2 | 1 1 . Scrap Searched . | . . . Spaces Dug . | . . . Terrain Destroyed 8 | . 4 4 Melee . | . . . Projectile 2 | . . 2 AOE 6 | . 4 2 Terrain Rammed . | . . . Walls Destroyed . | . . . Machines Disabled . | . . . Actions | -11 -10 -9 --------- Run | Yrd Mat Mat Total 1325 | 133 390 802 Wait 90 | 28 8 54 Move 1024 | 88 328 608 Hop . | . . . Pick Up 15 | 3 4 8 Fast Attach 39 | 7 11 21 Attach 10 | 1 1 8 Detach 14 | 2 1 11 Swap . | . . . Drop 17 | 2 1 14 Fire 84 | . 35 49 Melee 17 | . . 17 Ram . | . . . Kick 4 | . . 4 Crush 11 | 2 1 8 Escape Stasis . | . . . Rewire . | . . . Trap . | . . . Miscellaneous . | . . . Route ------- -11/Scrapyard -10/Materials (discovered 2 exits: *Mat / [*Min]) -9/Materials (discovered 2 exits: [*Mat] / [*Min]) History --------- Turn | Location | Event 72 | -11/Scrapyard | Discovered new exit (range 16) 178 | -11/Scrapyard | Entered Materials 311 | -10/Materials | Build established: Mutant 461 | -10/Materials | Lost 4 parts (1p2n1w) 624 | -10/Materials | Core integrity fell below 50% 651 | -10/Materials | Discovered new exit (range 12) 770 | -10/Materials | Discovered new exit (range 5) 886 | -10/Materials | Entered another Materials area 886 | -9/Materials | Evolved 2 slots: Power x1, Weapon x1 1149 | -9/Materials | Lost 4 parts (1p1n2w) 1296 | -9/Materials | Discovered new exit (range 7) 1533 | -9/Materials | Discovered new exit (range 14) 1606 | -9/Materials | Core integrity fell below 50% 2049 | -9/Materials | Core integrity fell below 20% 2123 | -9/Materials | Lost 4 parts (1n3w) 2363 | -9/Materials | Destroyed by G-34 Mercenary with Small Laser Last Messages --------------- 02106_ Acquired EM Pulse Cannon. 02124_ M-13 Machinist fits Backup Power I on G-34 Mercenary. 02126_ M-13 Machinist repairs G-34 Mercenary Aluminum Leg. 02133_ Slammed into G-34 Mercenary. 02137_ R-06 Scavenger collects Ion Engine. 02141_ G-34 Mercenary misfires. 02148_ M-13 Machinist repairs G-34 Mercenary. 02152_ Acquired 23 matter. 02166_ G-34 Mercenary misfires. 02185_ G-34 Mercenary IFF system glitched. 02201_ G-34 Mercenary misfires. 02203_ G-34 Mercenary destroyed. 02222_ Connecting with Terminal... 02325_ Triggered Alarm Trap. 02325_ An alarm sounds. 02325_ ALERT: Alarm triggered, dispatching investigation squad. 02338_ U-05 Engineer lays Concrete. Map ----- +----------------------------------------------------+ | | | | | ?????????????????????????????????????????????????? | | ?????????????????????????????????????????????????? | | ?????????????????????????????????????????????????? | | ?????????????????????????????????????????????????? | | ??????????????????????????????????????"??????????? | | ???????????????###########???????????? ?????????? | | ???????????????# ###########?? ????????? | | ???????????????# ] # #?? ??####### | | ???????????????# # #?? ???#!! ]!! | | ???????????????# # #?? ???#!! !! | | ???????????????# # """ ###+##??# | | ???????????????# # """"" # #### | | ???????????????# # """"" + | | ###????????????# # """ # T | | #????????????####+###### "" u # #######+## | | < #??????????????# #######/#### %##????????? | | #??????????##### ###### %u #?????????? | | #??????????# % r #?????????? | | #??????????#/ %"" #?????????? | | #??????????# [ "T ##????????? | | #??????????# [ t "" #????????? | | #??????????# ! % ###??????? | | #??????????#!! % %! ! +??????? | | #?????##########g !! @#####+#+## ###??????? | | ####### #??# ###### #?? ###/######?????? | | #??# #????# ## # #?????? | | #??# #????# ## # """""#?????? | | #??#%#????# ## # """""#?????? | | +######## #??# #??### ######### """""#?????? | | #??????## #####+##?# #?????# """""#?????? | | #???????# # ### #?????# """""#?????? | | #???????# # + % #?????# """????????? | | #???????+ + ###! #?????# ""?????????? | | #???????# # #?# #?????# ??????????? | | #???????# # #?## ##?????#####??????????? | | ##???????# # #??# #?????????????????????? | | ?????????# ########??# #?????????????????????? | | ?????????# #?????????# #?????????????????????? | | ?????????# ^ #?????????# #?????????????????????? | | #????????# #?????????# #?????????????????????? | | #????????# #?????????# #?????????????????????? | | #????????# #????????? ?????????????????????? | | #????????# #????????? ?????????????????????? | | #????????# #????????? T ????????????????????? | | #????????# #????????? ????????????????????? | | ########## #????????? ? #????????????????????? | | # ## #?????????# ? #?????????????????????? | | #???????????????????????????????????? | +----------------------------------------------------+ Best States ------------- Heat Dissipation 50 Energy Generation 14 Energy Capacity 250 Matter Stores 300 Matter Capacity 300 Sight Range 16 Terrain Scan Density 10 Armor Coverage 225 Evasion (%) 44 Targeting Accuracy 6 Recoil Reduction 2 Item Schematics ----------------- None Robot Schematics ------------------ None Fabricated ------------ Nothing Repaired ---------- Nothing Studied --------- None Alien Tech Used ----------------- None Achievements -------------- None Challenges ------------ None Game ------ Seed WarlordWarpActivator Manual? 0 Play Time 00:27:15 Cumulative 6.4 hours Start 2026.01.28 @ 15:03:18 End 2026.01.28 @ 15:31:57 Sessions 1 Manual Loads 0 Difficulty Rogue Special Mode None Game No. 10 Rogue 10 Adventurer 0 Explorer 0 Win Type - Total 0 Types 0/0/0/0/0/0/0/0/0/0 Lore% 1 Gallery% 13 Achievement% 8 Wizard Run 0 Options --------- Layout 2 ASCII 0 Keyboard 1 Movement Vi Keybinds 0 Fullscreen 1 Font 24/Smallcaps Map View 25x22 Zoom Use 81% Tactical HUD 1 Map Filters NONE Filters NONE Steam 1 RUN: 6afef2e4-e4a7-44f1-82ed-c7b582ebfe62